Workbook

Sheet Version History (hidden)
D2: Version Histrory
A4: History
A6: Version | B6: Date | C6: Author | D6: Details of modifications introduced

Sheet Quality Assurance (hidden)
D2: Quality Assurance
A4: Workbook QA
A6: Verified by | B6: Enter name of reviewer
A7: Date | B7: Enter date review completed
A8: Version | B8: Enter version of workbook checked
A9: Status | B9: QA completed but issues to resolve
A11: Type of QA | B11: Self-check by author | C11: Yes
B12: Internal QA - informal | C12: Yes
B13: Internal QA - formal | C13: Yes
B14: External QA | C14: Yes
A16: Objective of QA | B16: Check input data | C16: Yes
B17: Check calculations | C17: Yes
B18: Check methodology | C18: Yes
B19: Check implementation | C19: Yes
A21: QA results delivery format | B21: Report | C21: Yes
B22: Presentation | C22: Yes
B23: Notes to spreadsheet | C23: Yes
A25: QA notes
A27: Sheet | B27: Issue | C27: Details | D27: Status (issue resolved?)

Sheet Style Guidelines (hidden)
H2: Style Guidelines
A3: NB Use Window Unfreeze Panes (on each worksheet) to have row 1 scroll with the rest of the worksheet
A5: Styles
B8: Input | C8: 100 | E8: An input to the model that it is expected the user will change (change at will)
B10: Output | C10: 100 | E10: A key result from this part of the model (in particular one that will be used elsewhere in the model)
B12: Highlight | C12: 100 | E12: A cell that is highlighted for uncertainty
B14: Note or Source | C14: Note | E14: A note (NB smaller than standard font size)
B16: Un-format | E16: Going back to default Excel formatting
B18: Advanced user styles
B20: Input assumption | C20: 100 | E20: An input to the model that it is expected the user will change (change at will)
B22: Input Data | C22: 100 | E22: A piece of real data (only change if you have better data)
B24: Checksum | C24: 0 | E24: A side calculation intended solely to cross check a result (and which therefore should not be referenced anywhere else in the model)
B26: Note | C26: Note | E26: A note (NB smaller than standard font size)
B28: Source | C28: Source | E28: A source
B30: Named range | C30: Name | E30: An Excel Name applying to one or more adjacent cells (use Insert Name Create to actually create the Excel Names)
B32: H1 | C32: Title | E32: Heading level 1
B34: H2 | C34: Title | E34: Heading level 2
B36: H3 | C36: Title | E36: Heading level 3
B38: H4 | C38: Title | E38: Heading level 4

Sheet Contents
F2: =Workbook.Title -> Volumes
A4: Information
A6: Title | B6: Volumes
A7: Objective | B7: Forecast incremental GEA volumes resulting from the deployment of BT's proposed network expansion
A8: Version | B8: Version 1.0
A9: Spreadsheet Location | B9: http://projects/sites/wla17cc/eco/Modelling/Universal broadband/UBC volumes impact.xlsm
A11: Confidentiality status | B11: Non-confidential
A13: Do you want? | B13: FALSE
B14: FALSE
B15: FALSE
A17: Contents
A19: Sheet | B19: Description
A20: Contents | B20: Presents the workbook structure and the terms and conditions of this model
A21: Style Guideline | B21: Sets out style guidelines of this model
A22: Control | B22: Sets out the key parameters of the model
A24: Actual model sheets
A25: WLA inputs | B25: Pulls inputs from March 2017 WLA model
A26: UBC inputs | B26: Pulls inputs from Cartesian's geospatial analysis included in Network Cost module
A27: Non-SFBB areas | B27: Estimates incremental GEA take-up in UBC areas currently not served by a SFBB network
A28: SFBB areas | B28: Estimates incremental GEA take-up in UBC areas currently served by a SFBB network
A29: All areas | B29: Aggregates outputs from Non-SFBB areas and SFBB areas worksheets
A30: Ancillary services | B30: Estimates incremental ancillary services in UBC areas
A31: Indirect benefits | B31: Estimates incremental GEA revenue in UBC areas
A34: Terms and conditions
A36: The terms and conditions on which OFCOM is making available the model are set out below.
A37: The bottom-up model provided has been developed to help understand the cost of providing fibre access services in the UK.
A38: All right, title and interest in the provided model (the ‘Model’) constructed in Excel to understand the cost of fibre based access services on a hypothetical FTTC network are owned by OFCOM. Such title and interest is protected by United Kingdom intellectual property laws and international treaty provisions. While you may freely use the Model for the purposes for which it is provided, as set out in the accompanying model documentation, it is not to be modified in any way or used for commercial gain or otherwise without the prior written permission of OFCOM.
A39: No representation or warranty is given as to the accuracy, completeness or correctness of the provided Model and it is provided 'as is'. It is provided without any representation or endorsement made and without warranty of any kind, whether express or implied, including but not limited to the implied warranties of satisfactory quality, fitness for a particular purpose, non-infringement, compatibility, security and accuracy.
A40: OFCOM does not accept any responsibility for any loss, disruption or damage to your data or your computer system which may occur whilst using the Model or material derived from the Model. OFCOM does not warrant that the functions contained in the Model will be uninterrupted or error free. Also, OFCOM does not warrant that defects will be corrected, or that the Model provided is free of viruses.
A41: In no event will OFCOM be liable for any loss or damage including, without limitation, indirect or consequential loss or damage, or any loss or damages whatsoever arising from use or loss of use of, data or profits arising out of or in connection with the use or otherwise of the provided Model. By using this Model, you agree to the above.

Sheet Style Guideline
H2: Style Guidelines
A5: Styles
B8: Input | C8: 100 | E8: An input to the model that it is expected the user will change (change at will)
B10: Output | C10: 100 | E10: A key result from this part of the model (in particular one that will be used elsewhere in the model)
B12: Highlight | C12: 100 | E12: A cell that is highlighted for uncertainty
B14: Note or Source | C14: Note | E14: A note (NB smaller than standard font size)
B16: Un-format | E16: Going back to default Excel formatting

Sheet Control
A1: Control | C1: Units | E1: Selected
A3: Scenario | E3: =[2]Control!$H$20 -> B1 | F3: UBC_scenario
A4: Techset | E4: =[2]Control!H$24 -> LR-VDSL OFF
A6: Rollout
A7: Network deployment
A8: 2017/18 | C8: % | E8: 0
A9: 2018/19 | C9: % | E9: 0.25
A10: 2019/20 | C10: % | E10: 0.25
A11: 2020/21 | C11: % | E11: 0.25
A12: 2021/22 | C12: % | E12: 0.25
A13: 2022/23 | C13: % | E13: 0
A14: 2023/24 | C14: % | E14: 0
A15: 2024/25 | C15: % | E15: 0
A16: 2025/26 | C16: % | E16: 0
A17: 2026/27 | C17: % | E17: 0
A18: 2027/28 | C18: % | E18: 0
A19: 2028/29 | E19: 0
A20: Total | E20: =SUM(E8:E18) -> 1 | F20: Network_rollout
A21: Take up
A22: Take-up uplift | E22: 0 | F22: Takeup_uplift
A23: Catch-up period | E23: 8 | F23: Catchup_period
A24: Take-up gap between UBC & Non-UBC areas | E24: 0 | F24: Takeup_gap
A25: % take up gap to be closed | E25: 0.5 | F25: Takeup_gap_closed
A27: Ancillary services | E27: 2017/18 | F27: 2018/19 | G27: 2019/20 | H27: 2020/21 | I27: 2021/22 | J27: 2022/23 | K27: 2023/24 | L27: 2024/25 | M27: 2025/26 | N27: 2026/27 | O27: 2027/28 | P27: 2028/29
A28: GEA ceases as % of rentals | C28: % | E28: 0.08 | F28: 0.08 | G28: 0.08 | H28: 0.08 | I28: 0.08 | J28: 0.08 | K28: 0.08 | L28: 0.08 | M28: 0.08 | N28: 0.08 | O28: 0.08 | P28: 0.08 | Q28: Cease_ratio
A29: GEA bandwidth changes as % of rentals | C29: % | E29: 0.15 | F29: 0.15 | G29: 0.15 | H29: 0.15 | I29: 0.15 | J29: 0.15 | K29: 0.15 | L29: 0.15 | M29: 0.15 | N29: 0.15 | O29: 0.15 | P29: 0.15 | Q29: Bandwidth_change_ratio
A30: GEA migrations as % of rentals | C30: % | E30: 0.07 | F30: 0.07 | G30: 0.07 | H30: 0.07 | I30: 0.07 | J30: 0.07 | K30: 0.07 | L30: 0.07 | M30: 0.07 | N30: 0.07 | O30: 0.07 | P30: 0.07 | Q30: Migration_ratio
A32: Indirect benefits
A33: Incremental revenue uplift | E33: 0 | F33: Revenue_uplift

Sheet Inputs >

Sheet WLA inputs
A1: WLA forecasts | C1: Units | D1: 2011/12 | E1: 2012/13 | F1: 2013/14 | G1: 2014/15 | H1: 2015/16 | I1: 2016/17 | J1: 2017/18 | K1: 2018/19 | L1: 2019/20 | M1: 2020/21 | N1: 2021/22 | O1: 2022/23 | P1: 2023/24 | Q1: 2024/25 | R1: 2025/26 | S1: 2026/27 | T1: 2027/28 | U1: 2028/29 | W1: Source
A3: Demographic inputs
A4: UK households | C4: millions | D4: 26.55035625 | E4: 26.78541025 | F4: 27.01939725 | G4: 27.27453175 | H4: 27.5344795 | I4: 27.80032625 | J4: 28.0611145 | K4: 28.3205925 | L4: 28.57902525 | M4: 28.834594 | N4: 29.08877925 | O4: 29.3376515 | P4: 29.58485 | Q4: 29.83199025 | R4: 30.0769975 | S4: 30.323541 | T4: 30.56621475 | U4: 30.8046705 | W4: WLA Volumes module
A6: Total no. of lines and BB penetration
A8: Total UK unadjusted OR lines | C8: millions | D8: 24.36364709 | E8: 24.46736576 | F8: 24.75855781 | G8: 24.9255713 | H8: 25.09427919 | I8: 25.31848373 | J8: 25.51102309 | K8: 25.70498514 | L8: 25.91055339 | M8: 26.10937057 | N8: 26.30996024 | O8: 26.51016598 | P8: 26.70943089 | Q8: 26.91070668 | R8: 27.11215543 | S8: 27.31598769 | T8: 27.51814614 | U8: 27.7181607 | W8: WLA Volumes module
A10: Total UK OR broadband lines | C10: millions | D10: 16.13304009 | E10: 16.65898393 | F10: 18.19612207 | G10: 18.99087268 | H10: 19.95132128 | I10: 20.63594579 | J10: 21.30309634 | K10: 21.97916494 | L10: 22.67314808 | M10: 23.36931137 | N10: 23.94243139 | O10: 24.48618019 | P10: 24.99058917 | Q10: 25.44678393 | R10: 25.87293411 | S10: 26.27110349 | T10: 26.63970631 | U10: 26.98401315 | W10: WLA Volumes module
A11: Broadband penetration of Openreach lines | C11: % | J11: =J10/J8 -> 0.835054567 | K11: =K10/K8 -> 0.855054567 | L11: 0.875054567 | M11: 0.895054567 | N11: 0.910013971 | O11: 0.9236524663 | P11: 0.935646636 | Q11: 0.945600732 | R11: 0.9542927776 | S11: 0.9617482548 | T11: 0.9680777975 | U11: 0.973513843 | W11: WLA Volumes module
A13: Total UK GEA broadband lines | C13: millions | D13: 0.3270400923 | E13: 0.9249185833 | F13: 2.034588738 | G13: 3.409888333 | H13: 5.057836583 | I13: 6.882270623 | J13: 8.809018945 | K13: 10.84691249 | L13: 13.00325116 | M13: 15.27205188 | N13: 16.93595795 | O13: 18.42474917 | P13: 19.69511256 | Q13: 20.70052984 | R13: 21.5491394 | S13: 22.25744885 | T13: 22.84514462 | U13: 23.34571249 | W13: WLA Volumes module
A14: Proportion of Openreach broadband lines that are GEA | C14: % | D14: =D13/D4 -> 0.01231772897 | E14: 0.03453068572 | F14: 0.07530104091 | G14: 0.125020967 | H14: 0.1836910185 | I14: 0.2475607862 | J14: =J13/J4 -> 0.3139226329 | K14: 0.3830044336 | L14: 0.4549928154 | M14: 0.5296433819 | N14: 0.5822161804 | O14: 0.6280239974 | P14: 0.665716154 | Q14: 0.6939037479 | R14: 0.7164657776 | S14: 0.7339990026 | T14: 0.7473985512 | U14: 0.7578627563 | W14: WLA Volumes module
A17: Lines adjusted for competitive network build
A19: Total UK adjusted OR lines | C19: millions | D19: 24.36364709 | E19: 24.46736576 | F19: 24.75855781 | G19: 24.9255713 | H19: 25.09427919 | I19: 24.99848373 | J19: 24.87102309 | K19: 24.69488514 | L19: 24.53035339 | M19: 24.35907057 | N19: 24.50956024 | O19: 24.65966598 | P19: 24.80883089 | Q19: 24.96000668 | R19: 25.11135543 | S19: 25.26508769 | T19: 25.41714614 | U19: 25.5670607 | W19: WLA Volumes module
A21: Total UK broadband lines | D21: 16.13304009 | E21: 16.65898393 | F21: 18.19612207 | G21: 18.99087268 | H21: 19.95132128 | I21: 20.31594579 | J21: 20.66309634 | K21: 20.96906494 | L21: 21.29294808 | M21: 21.61901137 | N21: 22.14203139 | O21: 22.63568019 | P21: 23.08998917 | Q21: 23.49608393 | R21: 23.87213411 | S21: 24.22020349 | T21: 24.53870631 | U21: 24.83291315 | W21: WLA Volumes module
A22: Broadband penetration of Openreach lines | C22: % | D22: 0.6621767273 | E22: 0.6808654472 | F22: 0.73494273 | G22: 0.7619032058 | H22: 0.795054567 | I22: 0.8126871218 | J22: 0.8308100662 | K22: 0.8491258339 | L22: 0.8680245139 | M22: 0.8875138034 | N22: 0.9034038627 | O22: 0.9179232277 | P22: 0.9307165366 | Q22: 0.9413492647 | R22: 0.9506509586 | S22: 0.9586431595 | T22: 0.9654390848 | U22: 0.9712854143 | W22: WLA Volumes module
A24: Total UK GEA broadband lines | C24: millions | D24: 0.3270400923 | E24: 0.9249185833 | F24: 2.034588738 | G24: 3.409888333 | H24: 5.057836583 | I24: 6.77554779 | J24: 8.544373279 | K24: 10.3484192 | L24: 12.21169424 | M24: 14.12821533 | N24: 15.66242402 | O24: 17.03233116 | P24: 18.19724747 | Q24: 19.11366827 | R24: 19.88270614 | S24: 20.51988187 | T24: 21.04341121 | U24: 21.48464899 | W24: WLA Volumes module
A25: Proportion of Openreach broadband lines that are GEA | C25: % | D25: =D24/D4 -> 0.01231772897 | E25: =E24/E4 -> 0.03453068572 | F25: 0.07530104091 | G25: 0.125020967 | H25: 0.1836910185 | I25: 0.2437218804 | J25: 0.3044915867 | K25: 0.3654026376 | L25: 0.4272956874 | M25: 0.4899744846 | N25: 0.5384352463 | O25: 0.5805621884 | P25: 0.6150866905 | Q25: 0.6407104625 | R25: 0.6610602051 | S25: 0.6766980767 | T25: 0.6884532934 | U25: 0.6974477778 | W25: WLA Volumes module
A29: GEA bandwidth
A30: Total GEA-FTTC lines (commercial) | C30: One | I30: 4802856.884 | J30: 5971247.666 | K30: 7128523.583 | L30: 8289926.357 | M30: 9449677.33 | N30: 10517239.73 | O30: 11482151.68 | P30: 12315572.4 | Q30: 12986317.93 | R30: 13561383.34 | S30: 14050227.06 | T30: 14464324.04 | U30: 14824407.8 | W30: WLA Volumes module
A31: Internal | C31: One | I31: 3926117.569 | J31: 5120073.923 | K31: 6397526.453 | L31: 7771429.797 | M31: 9236630.803 | N31: 10566865.41 | O31: 11812845.18 | P31: 12919547.36 | Q31: 13826171.55 | R31: 14614465.35 | S31: 15288746.37 | T31: 15860098.35 | U31: 16355165.84 | W31: WLA Volumes module
A32: External | C32: One | I32: 876739.3149 | J32: 851173.7427 | K32: 730997.1299 | L32: 518496.5596 | M32: 213046.5269 | N32: -49625.68229 | O32: -330693.4995 | P32: -603974.9641 | Q32: -839853.6141 | R32: -1053082.011 | S32: -1238519.307 | T32: -1395774.319 | U32: -1530758.043 | W32: WLA Volumes module
A33: 40/2 mgbit/s | C33: One | I33: 387613.2948 | J33: 362630.4552 | K33: 299136.2864 | L33: 225377.5927 | M33: 135055.0306 | N33: 61333.68755 | O33: -11414.47337 | P33: -78679.40727 | Q33: -134517.5251 | R33: -183106.9921 | S33: -224042.6195 | T33: -257776.1992 | U33: -286020.5938 | W33: WLA Volumes module
A34: 40/10 mgbit/s | C34: One | I34: 1447065.568 | J34: 1742660.231 | K34: 2449993.583 | L34: 3223560.161 | M34: 4049475.758 | N34: 4873479.057 | O34: 5623330.513 | P34: 6308026.882 | Q34: 6893697.032 | R34: 7404480.144 | S34: 7849818.474 | T34: 8233568.643 | U34: 8567961.34 | W34: WLA Volumes module
A35: 55/10 mgbit/s | C35: One | I35: 1494536.395 | J35: 1923944.454 | K35: 2113880.404 | L35: 2301209.7 | M35: 2455162.759 | N35: 2542127.662 | O35: 2625564.269 | P35: 2674444.24 | Q35: 2691646.389 | R35: 2702572.149 | S35: 2704716.32 | T35: 2702338.316 | U35: 2699912.354 | W35: WLA Volumes module
A36: 80/20 mgbit/s | C36: One | I36: 1337626.882 | J36: 1623707.947 | K36: 1876841.93 | L36: 2141318.602 | M36: 2400774.062 | N36: 2615861.561 | O36: 2805891.979 | P36: 2960124.923 | Q36: 3073064.837 | R36: 3165484.295 | S36: 3239454.072 | T36: 3298668.254 | U36: 3348588.025 | W36: WLA Volumes module
A38: Bandwidth mix
A39: 40/2 mgbit/s | C39: % | J39: =J33/SUM(J$33:J$36) -> 0.06414896622 | K39: =K33/SUM(K$33:K$36) -> 0.04438321158 | L39: 0.02855966067 | M39: 0.01493894303 | N39: 0.006076973247 | O39: -0.001033603964 | P39: -0.006631824014 | Q39: -0.01074087342 | R39: -0.01398892066 | S39: -0.01651020686 | T39: -0.01844314989 | U39: -0.0199589525
A40: 40/10 mgbit/s | C40: % | J40: =J34/SUM(J$33:J$36) -> 0.3082748586 | K40: 0.3635085027 | L40: 0.4084868563 | M40: 0.4479276884 | N40: 0.4828668067 | O40: 0.509204106 | P40: 0.531698517 | Q40: 0.5504437223 | R40: 0.5656839429 | S40: 0.5784708599 | T40: 0.5890882909 | U40: 0.5978853871
A41: 55/10 mgbit/s | C41: % | J41: 0.3403438571 | K41: 0.3136389849 | L41: 0.2916073748 | M41: 0.2715747531 | N41: 0.2518753137 | O41: 0.2377502271 | P41: 0.2254267559 | Q41: 0.2149209416 | R41: 0.2064698182 | S41: 0.1993166569 | T41: 0.1933445787 | U41: 0.1884039947
A42: 80/20 mgbit/s | C42: % | J42: 0.2872323181 | K42: 0.2784693008 | L42: 0.2713461082 | M42: 0.2655586155 | N42: 0.2591809063 | O42: 0.2540792709 | P42: 0.2495065511 | Q42: 0.2453762096 | R42: 0.2418351595 | S42: 0.2387226901 | T42: 0.2360102803 | U42: 0.2336695706
V43: GEA_bandwidth_mix
A44: GEA prices
A45: Rental prices
A46: 40/2 mgbit/s | J46: 82.8 | K46: 60.61414014 | L46: 51.61773963 | M46: 47.43386784 | N46: =M46 -> 47.43386784 | O46: =N46 -> 47.43386784 | P46: 47.43386784 | Q46: 47.43386784 | R46: 47.43386784 | S46: 47.43386784 | T46: 47.43386784 | U46: 47.43386784 | W46: WLA Control module - assumed constant from 2020/21 onwards
A47: 40/10 mgbit/s | J47: 88.8 | K47: 65.00646913 | L47: 55.35815555 | M47: 50.87110464 | N47: =M47 -> 50.87110464 | O47: =N47 -> 50.87110464 | P47: 50.87110464 | Q47: 50.87110464 | R47: 50.87110464 | S47: 50.87110464 | T47: 50.87110464 | U47: 50.87110464 | W47: WLA Control module - assumed constant from 2020/21 onwards
A48: 55/10 mgbit/s | J48: 100.8 | K48: 73.79112712 | L48: 62.83898738 | M48: 57.74557824 | N48: =M48 -> 57.74557824 | O48: =N48 -> 57.74557824 | P48: 57.74557824 | Q48: 57.74557824 | R48: 57.74557824 | S48: 57.74557824 | T48: 57.74557824 | U48: 57.74557824 | W48: WLA Control module - assumed constant from 2020/21 onwards
A49: 80/20 mgbit/s | J49: 119.4 | K49: 87.40734701 | L49: 74.43427672 | M49: 68.40101232 | N49: =M49 -> 68.40101232 | O49: =N49 -> 68.40101232 | P49: 68.40101232 | Q49: 68.40101232 | R49: 68.40101232 | S49: 68.40101232 | T49: 68.40101232 | U49: 68.40101232 | W49: WLA Control module - assumed constant from 2020/21 onwards
V50: GEA_rental_prices
A51: Ancillary prices
A52: Engineer install | J52: 99 | K52: 90 | L52: 81.23902182 | M52: 83.75747808 | N52: 86.353696 | O52: 89.03077303 | P52: 91.79093029 | Q52: 94.63654288 | R52: 97.56988619 | S52: 100.5947303 | T52: 103.7135955 | U52: 106.9284863 | W52: WLA Cost Recovery - assumed to follow bottom-up LRIC from 2019/20 onwards
A53: FTTP Engineer install | J53: 117 | K53: 117 | L53: 117 | M53: 117 | N53: 117 | O53: 117 | P53: 117 | Q53: 117 | R53: 117 | S53: 117 | T53: 117 | U53: 117 | W53: BT price for FTTP connection - assumed to remain constant over time
A54: PCP only | J54: 49 | K54: 47.48273612 | L54: 46.55079819 | M54: 47.47944735 | N54: 49.75973263 | O54: 50.0582646 | P54: 52.53216448 | Q54: 54.33047198 | R54: 55.38693979 | S54: 56.61689987 | T54: 58.50288917 | U54: 60.31546816 | W54: WLA Control module - assumed to follow bottom-up LRIC from 2020/21 onwards
A55: Start of Stopped line | J55: 32.52 | K55: 7.082306063 | L55: 3.276625428 | M55: 3.378200454 | N55: 3.482972164 | O55: 3.59094433 | P55: 3.702263851 | Q55: 3.817034009 | R55: 3.935361847 | S55: 4.057358119 | T55: 4.183136356 | U55: 4.312813372 | W55: WLA Control module - assumed to follow bottom-up LRIC from 2020/21 onwards
A56: GEA Ceases | J56: 0 | K56: 0 | L56: 0 | M56: 0 | N56: =M56 -> 0 | O56: 0 | P56: 0 | Q56: 0 | R56: 0 | S56: 0 | T56: 0 | U56: 0 | W56: WLA Control module - assumed to follow bottom-up LRIC from 2020/21 onwards
A57: Bandwidth Change | J57: 11.25 | K57: 9.112987471 | L57: 8.165247899 | M57: 8.207087135 | N57: 8.207087135 | O57: 8.207087135 | P57: 8.207087135 | Q57: 8.207087135 | R57: 8.207087135 | S57: 8.207087135 | T57: 8.207087135 | U57: 8.207087135 | W57: WLA Control module - assumed to follow bottom-up LRIC from 2020/21 onwards
A58: Migrations | J58: 11 | K58: 4.926032167 | L58: 3.276656308 | M58: 3.378232292 | N58: 3.482972164 | O58: 3.59094433 | P58: 3.702263851 | Q58: 3.817034009 | R58: 3.935361847 | S58: 4.057358119 | T58: 4.183136356 | U58: 4.312813372 | W58: WLA Control module - assumed to follow bottom-up LRIC from 2020/21 onwards
V59: GEA_ancillary_prices
A61: GEA Connections
A62: PCP only | C62: One | D62: 0 | E62: 2418.422432 | F62: 83599.22224 | G62: 1045342.084 | H62: 2048246.157 | I62: 2519468.13 | J62: 2891331.496 | K62: 3187149.069 | L62: 3390236.098 | M62: 3330111.416 | N62: 3122582.993 | O62: 2984089.09 | P62: 2790306.611 | Q62: 2614392.614 | R62: 2489166.371 | S62: 2376606.043 | T62: 2285757.263 | U62: 2034330.935 | W62: WLA Volumes module
A63: Engineer install | C63: One | D63: 431322.505 | E63: 979438.6599 | F63: 1391649.631 | G63: 938914.3928 | H63: 388766.5205 | I63: 275118.0636 | J63: 176793.0115 | K63: 115615.9445 | L63: 83071.35131 | M63: 62576.28133 | N63: 49625.42735 | O63: 39814.18668 | P63: 33051.91209 | Q63: 28393.76093 | R63: 25075.85424 | S63: 22660.18344 | T63: 20852.94301 | U63: 18765.43185 | W63: WLA Volumes module
A64: Start of Stopped line | C64: One | D64: 0 | E64: 0 | F64: 0 | G64: 601 | H64: 56006.16939 | I64: 64766.76108 | J64: 71550.50106 | K64: 77430.16018 | L64: 81813.96094 | M64: 79963.22983 | N64: 74666.5652 | O64: 71206.17668 | P64: 66435.99882 | Q64: 62122.40022 | R64: 59055.51415 | S64: 56299.93242 | T64: 54076.30882 | U64: 48002.87494 | W64: WLA Volumes module
A66: PCP only | C66: % | D66: =D62/SUM(D$62:D$64) -> 0 | E66: =E62/SUM(E$62:E$64) -> 0.002463110442 | F66: 0.05666787814 | G66: 0.5266585113 | H66: 0.8215927286 | I66: 0.8811322596 | J66: 0.9209015226 | K66: 0.9428890656 | L66: 0.9536203428 | M66: 0.9589536886 | N66: 0.9617195016 | O66: 0.9641303918 | P66: 0.9655726696 | Q66: 0.966536335 | R66: 0.9673060108 | S66: 0.9678444356 | T66: 0.9682595502 | U66: 0.9682222022
A67: Engineer install | C67: % | D67: =D63/SUM(D$62:D$64) -> 1 | E67: 0.9975368896 | F67: 0.9433321219 | G67: 0.4730386961 | H67: 0.1559420704 | I67: 0.09621689523 | J67: 0.05630933489 | K67: 0.03420392567 | L67: 0.02336667071 | M67: 0.01801974418 | N67: 0.01528405854 | O67: 0.01286357955 | P67: 0.01143746098 | Q67: 0.0104971233 | R67: 0.009744637729 | S67: 0.009228089155 | T67: 0.008833423196 | U67: 0.008931244884
A68: Start of Stopped line | C68: % | D68: 0 | E68: 0 | F68: 0 | G68: 0.0003027925214 | H68: 0.02246520096 | I68: 0.02265084518 | J68: 0.02278914246 | K68: 0.02290700868 | L68: 0.02301298648 | M68: 0.02302656717 | N68: 0.02299643982 | O68: 0.02300602862 | P68: 0.02298986946 | Q68: 0.02296654171 | R68: 0.02294935142 | S68: 0.02292747529 | T68: 0.02290702662 | U68: 0.02284655289

Sheet UBC inputs
A1: UBC inputs | D1: Units
B3: Lines affected by LR-VDSL
B4: Migration adsl | D4: One | F4: =INDEX([2]Calc_GeoVolumes!$F$11:$F$50,MATCH(B4,[2]Calc_GeoVolumes!$D$11:$D$50,0)) -> 0
B6: UBC Premises | I6: Split by technology | J6: %
B7: VDSL Premises | D7: One | F7: =INDEX([2]Calc_GeoVolumes!$F$11:$F$50,MATCH(B7,[2]Calc_GeoVolumes!$D$11:$D$50,0)) -> 1287955 | I7: VDSL | J7: =F7/$F$12 -> 0.6815947122
B8: LR-VDSL Premises | D8: One | F8: =INDEX([2]Calc_GeoVolumes!$F$11:$F$50,MATCH(B8,[2]Calc_GeoVolumes!$D$11:$D$50,0)) -> 0 | I8: LR-VDSL | J8: =F8/$F$12 -> 0
B9: FTTP Premises | D9: One | F9: =INDEX([2]Calc_GeoVolumes!$F$11:$F$50,MATCH(B9,[2]Calc_GeoVolumes!$D$11:$D$50,0)) -> 155258 | I9: FTTC | J9: =SUM(F7:F8)/$F$12 -> 0.6815947122 | K9: FTTC_ratio
B10: Gfast Premises | D10: One | F10: =INDEX([2]Calc_GeoVolumes!$F$11:$F$50,MATCH(B10,[2]Calc_GeoVolumes!$D$11:$D$50,0)) -> 446407 | I10: FTTP | J10: =F9/$F$12 -> 0.08216360961 | K10: FTTP_ratio
I11: Gfast | J11: =F10/$F$12 -> 0.2362416782 | K11: Gfast_ratio
B12: Total fixed UBC premises | D12: One | F12: =SUM(F7:F10) -> 1889620 | G12: Fixed_premises
B14: FWA Premises | D14: One | F14: =INDEX([2]Calc_GeoVolumes!$F$11:$F$50,MATCH(B14,[2]Calc_GeoVolumes!$D$11:$D$50,0)) -> 469819
B15: Satellite Premises | D15: One | F15: =INDEX([2]Calc_GeoVolumes!$F$11:$F$50,MATCH(B15,[2]Calc_GeoVolumes!$D$11:$D$50,0)) -> 10210
B16: Total wireless UBC premises | D16: One | F16: =SUM(F14:F15) -> 480029 | G16: Wireless_premises
B17: Total UBC premises | D17: One | F17: =F12+SUM(F14:F15) -> 2369649
B19: Premises from ADSL cabinets | D19: One | F19: =INDEX([2]Calc_GeoVolumes!$F$11:$F$50,MATCH(B19,[2]Calc_GeoVolumes!$D$11:$D$50,0)) -> 1287955
B20: Proportion of total UBC premises | F20: =F19/F17 -> 0.5435214245
B22: Fixed premises from ADSL cabinets | D22: One | F22: =F12*$F$20 -> 1027048.954 | G22: Non_SFBB_premises
B23: Fixed premises from GEA cabinets | D23: One | F23: =F12-Non_SFBB_premises -> 862571.0459 | G23: SFBB_premises

Sheet Calculations >

Sheet Non-SFBB areas
A1: Non-SFBB areas
D3: Units | G3: 2017/18 | H3: 2018/19 | I3: 2019/20 | J3: 2020/21 | K3: 2021/22 | L3: 2022/23 | M3: 2023/24 | N3: 2024/25 | O3: 2025/26 | P3: 2026/27 | Q3: 2027/28 | R3: 2028/29
B5: UBC Scenario
B6: =UBC_scenario -> B1
B8: Non-SFBB UBC premises | D8: millions | F8: =Non_SFBB_premises/million -> 1.027048954
B10: Take up
B11: 2017/18 | D11: % | G11: 0.1 | H11: 0.1 | I11: 0.1 | J11: 0.1 | K11: 0.1 | L11: 0.1 | M11: 0.1 | N11: 0.1
B12: 2018/19 | D12: % | H12: 0.1 | I12: 0.1 | J12: 0.1 | K12: 0.1 | L12: 0.1 | M12: 0.1 | N12: 0.1 | O12: 0.1
B13: 2019/20 | D13: % | I13: 0.1 | J13: 0.1 | K13: 0.1 | L13: 0.1 | M13: 0.1 | N13: 0.1 | O13: 0.1 | P13: 0.1
B14: 2020/21 | D14: % | J14: 0.1 | K14: 0.1 | L14: 0.1 | M14: 0.1 | N14: 0.1 | O14: 0.1 | P14: 0.1 | Q14: 0.1
B15: 2021/22 | D15: % | K15: 0.1 | L15: 0.1 | M15: 0.1 | N15: 0.1 | O15: 0.1 | P15: 0.1 | Q15: 0.1 | R15: 0.1
B16: 2022/23 | D16: % | L16: 0.1 | M16: 0.1 | N16: 0.1 | O16: 0.1 | P16: 0.1 | Q16: 0.1 | R16: 0.1
B17: 2023/24 | D17: % | M17: 0.1 | N17: 0.1 | O17: 0.1 | P17: 0.1 | Q17: 0.1 | R17: 0.1
B18: 2024/25 | D18: % | N18: 0.1 | O18: 0.1 | P18: 0.1 | Q18: 0.1 | R18: 0.1
B19: 2025/26 | D19: % | O19: 0.1 | P19: 0.1 | Q19: 0.1 | R19: 0.1
B20: 2026/27 | D20: % | P20: 0.1 | Q20: 0.1 | R20: 0.1
B21: 2027/28 | D21: % | Q21: 0.1 | R21: 0.1
B22: 2028/29 | D22: % | R22: 0.1
B25: Subscriber take-up | D25: % | G25: =SUMPRODUCT(Network_rollout,G$11:G$22) -> 0 | H25: 0.025 | I25: 0.05 | J25: 0.075 | K25: 0.1 | L25: 0.1 | M25: 0.1 | N25: 0.1 | O25: 0.1 | P25: 0.075 | Q25: 0.05 | R25: 0.025
B26: Cumulative take-up | D26: % | G26: =G25 -> 0 | H26: =G26+H25 -> 0.025 | I26: =H26+I25 -> 0.075 | J26: 0.15 | K26: 0.25 | L26: 0.35 | M26: 0.45 | N26: 0.55 | O26: 0.65 | P26: 0.725 | Q26: 0.775 | R26: 0.8
B28: Unadjusted UBC subscribers | D28: millions | G28: =$F$8*G26*(1+Takeup_uplift) -> 0 | H28: 0.02567622385 | I28: 0.07702867156 | J28: 0.1540573431 | K28: 0.2567622385 | L28: 0.3594671339 | M28: 0.4621720294 | N28: 0.5648769248 | O28: 0.6675818202 | P28: 0.7446104917 | Q28: 0.7959629394 | R28: 0.8216391633
B30: GEA bandwidth split
B31: 40/2 mgbit/s | D31: % | G31: =G28:R28*GEA_bandwidth_mix -> 0 | H31: 0.001139593276 | I31: 0.002199912721 | J31: 0.002301453872 | K31: 0.001560337255 | L31: -0.0003715466545 | M31: -0.003065043563 | N31: -0.006067271546 | O31: -0.009338749117 | P31: -0.01229367325 | Q31: -0.0146800638 | R31: -0.01639905704
B32: 40/10 mgbit/s | D32: % | G32: 0 | H32: 0.009333525688 | I32: 0.03146519989 | J32: 0.06900654959 | K32: 0.1239819622 | L32: 0.1830421406 | M32: 0.2457361826 | N32: 0.3109329571 | O32: 0.3776403162 | P32: 0.4307354715 | Q32: 0.4688924476 | R32: 0.4912460492
B33: 55/10 mgbit/s | D33: % | G33: 0 | H33: 0.008053064786 | I33: 0.0224621287 | J33: 0.04183808491 | K33: 0.06467206939 | L33: 0.08546339273 | M33: 0.1041859412 | N33: 0.1214038806 | O33: 0.1378354971 | P33: 0.1484132739 | Q33: 0.1538951192 | R33: 0.1548001006
B34: 80/20 mgbit/s | D34: % | G34: 0 | H34: 0.007150040103 | I34: 0.02090143025 | J34: 0.04091125475 | K34: 0.06654786968 | L34: 0.09133314729 | M34: 0.1153149491 | N34: 0.1386073587 | O34: 0.161444756 | P34: 0.1777554196 | Q34: 0.1878554365 | R34: 0.1919920705
S35: Subs_non_SFBB_split

Sheet SFBB areas
A1: SFBB areas
D3: Units | G3: 2017/18 | H3: 2018/19 | I3: 2019/20 | J3: 2020/21 | K3: 2021/22 | L3: 2022/23 | M3: 2023/24 | N3: 2024/25 | O3: 2025/26 | P3: 2026/27 | Q3: 2027/28 | R3: 2028/29
B5: UBC Scenario
B6: =UBC_scenario -> B1
B8: UBC premises | D8: millions | F8: =SFBB_premises/million -> 0.8625710459
B10: Take up gap | D10: % | F10: =Takeup_gap -> 0
B11: % of take up gap to be closed | F11: =Takeup_gap_closed -> 0.5
B12: UBC take up impact | F12: =F10*F11 -> 0
B13: Annual take-up | D13: % | F13: =F12/Catchup_period -> 0
B15: Take up
B16: 2017/18 | D16: % | G16: =$F$13 -> 0 | H16: 0 | I16: 0 | J16: 0 | K16: 0 | L16: 0 | M16: 0 | N16: 0
B17: 2018/19 | D17: % | H17: =$F$13 -> 0 | I17: 0 | J17: 0 | K17: 0 | L17: 0 | M17: 0 | N17: 0 | O17: 0
B18: 2019/20 | D18: % | I18: =$F$13 -> 0 | J18: 0 | K18: 0 | L18: 0 | M18: 0 | N18: 0 | O18: 0 | P18: 0
B19: 2020/21 | D19: % | J19: =$F$13 -> 0 | K19: 0 | L19: 0 | M19: 0 | N19: 0 | O19: 0 | P19: 0 | Q19: 0
B20: 2021/22 | D20: % | K20: =$F$13 -> 0 | L20: 0 | M20: 0 | N20: 0 | O20: 0 | P20: 0 | Q20: 0 | R20: 0
B21: 2022/23 | D21: % | L21: =$F$13 -> 0 | M21: 0 | N21: 0 | O21: 0 | P21: 0 | Q21: 0 | R21: 0
B22: 2023/24 | D22: % | M22: =$F$13 -> 0 | N22: 0 | O22: 0 | P22: 0 | Q22: 0 | R22: 0
B23: 2024/25 | D23: % | N23: =$F$13 -> 0 | O23: =$F$13 -> 0 | P23: =$F$13 -> 0 | Q23: =$F$13 -> 0 | R23: =$F$13 -> 0
B24: 2025/26 | D24: % | O24: =$F$13 -> 0 | P24: =$F$13 -> 0 | Q24: =$F$13 -> 0 | R24: =$F$13 -> 0
B25: 2026/27 | D25: % | P25: =$F$13 -> 0 | Q25: =$F$13 -> 0 | R25: =$F$13 -> 0
B26: 2027/28 | D26: % | Q26: =$F$13 -> 0 | R26: =$F$13 -> 0
B27: 2028/29 | D27: % | R27: =$F$13 -> 0
B30: Subscriber take-up | D30: % | G30: =SUMPRODUCT(Network_rollout,G$16:G$27) -> 0 | H30: 0 | I30: 0 | J30: 0 | K30: 0 | L30: 0 | M30: 0 | N30: 0 | O30: 0 | P30: 0 | Q30: 0 | R30: 0
B31: Cumulative take-up | D31: % | G31: =G30 -> 0 | H31: =G31+H30 -> 0 | I31: =H31+I30 -> 0 | J31: 0 | K31: 0 | L31: 0 | M31: 0 | N31: 0 | O31: 0 | P31: 0 | Q31: 0 | R31: 0
B33: Unadjusted UBC subscribers | D33: millions | G33: =$F$8*G31*(1+Takeup_uplift) -> 0 | H33: 0 | I33: 0 | J33: 0 | K33: 0 | L33: 0 | M33: 0 | N33: 0 | O33: 0 | P33: 0 | Q33: 0 | R33: 0
B35: GEA bandwidth split
B36: 40/2 mgbit/s | D36: % | G36: 0 | H36: 0 | I36: 0 | J36: 0 | K36: 0 | L36: 0 | M36: 0 | N36: 0 | O36: 0 | P36: 0 | Q36: 0 | R36: 0
B37: 40/10 mgbit/s | D37: % | G37: =G33 -> 0 | H37: =H33 -> 0 | I37: 0 | J37: 0 | K37: 0 | L37: 0 | M37: 0 | N37: 0 | O37: 0 | P37: 0 | Q37: 0 | R37: 0
B38: 55/10 mgbit/s | D38: % | G38: 0 | H38: 0 | I38: 0 | J38: 0 | K38: 0 | L38: 0 | M38: 0 | N38: 0 | O38: 0 | P38: 0 | Q38: 0 | R38: 0
B39: 80/20 mgbit/s | D39: % | G39: 0 | H39: 0 | I39: 0 | J39: 0 | K39: 0 | L39: 0 | M39: 0 | N39: 0 | O39: 0 | P39: 0 | Q39: 0 | R39: 0
S40: Subs_SFBB_split

Sheet All areas
A1: All areas
D3: Units | F3: 2017/18 | G3: 2018/19 | H3: 2019/20 | I3: 2020/21 | J3: 2021/22 | K3: 2022/23 | L3: 2023/24 | M3: 2024/25 | N3: 2025/26 | O3: 2026/27 | P3: 2027/28 | Q3: 2028/29
B5: UBC Scenario
B6: =UBC_scenario -> B1
B8: Total UBC subs | D8: millions
B9: 40/2 mgbit/s | D9: millions | F9: =Subs_non_SFBB_split+Subs_SFBB_split -> 0 | G9: 0.001139593276 | H9: 0.002199912721 | I9: 0.002301453872 | J9: 0.001560337255 | K9: -0.0003715466545 | L9: -0.003065043563 | M9: -0.006067271546 | N9: -0.009338749117 | O9: -0.01229367325 | P9: -0.0146800638 | Q9: -0.01639905704
B10: 40/10 mgbit/s | D10: millions | F10: 0 | G10: 0.009333525688 | H10: 0.03146519989 | I10: 0.06900654959 | J10: 0.1239819622 | K10: 0.1830421406 | L10: 0.2457361826 | M10: 0.3109329571 | N10: 0.3776403162 | O10: 0.4307354715 | P10: 0.4688924476 | Q10: 0.4912460492
B11: 55/10 mgbit/s | D11: millions | F11: 0 | G11: 0.008053064786 | H11: 0.0224621287 | I11: 0.04183808491 | J11: 0.06467206939 | K11: 0.08546339273 | L11: 0.1041859412 | M11: 0.1214038806 | N11: 0.1378354971 | O11: 0.1484132739 | P11: 0.1538951192 | Q11: 0.1548001006
B12: 80/20 mgbit/s | D12: millions | F12: 0 | G12: 0.007150040103 | H12: 0.02090143025 | I12: 0.04091125475 | J12: 0.06654786968 | K12: 0.09133314729 | L12: 0.1153149491 | M12: 0.1386073587 | N12: 0.161444756 | O12: 0.1777554196 | P12: 0.1878554365 | Q12: 0.1919920705
B13: Total | D13: millions | F13: =SUM(F9:F12) -> 0 | G13: =SUM(G9:G12) -> 0.02567622385 | H13: 0.07702867156 | I13: 0.1540573431 | J13: 0.2567622385 | K13: 0.3594671339 | L13: 0.4621720294 | M13: 0.5648769248 | N13: 0.6675818202 | O13: 0.7446104917 | P13: 0.7959629394 | Q13: 0.8216391633 | R13: Total_UBC_subs
B15: Total UBC premises | D15: millions | F15: ='UBC inputs'!$F$12/million -> 1.88962 | G15: ='UBC inputs'!$F$12/million -> 1.88962 | H15: ='UBC inputs'!$F$12/million -> 1.88962 | I15: ='UBC inputs'!$F$12/million -> 1.88962 | J15: ='UBC inputs'!$F$12/million -> 1.88962 | K15: ='UBC inputs'!$F$12/million -> 1.88962 | L15: ='UBC inputs'!$F$12/million -> 1.88962 | M15: ='UBC inputs'!$F$12/million -> 1.88962 | N15: ='UBC inputs'!$F$12/million -> 1.88962 | O15: ='UBC inputs'!$F$12/million -> 1.88962 | P15: ='UBC inputs'!$F$12/million -> 1.88962 | Q15: ='UBC inputs'!$F$12/million -> 1.88962
B17: UBC Take up | D17: % | F17: =F13/F15 -> 0 | G17: =G13/G15 -> 0.01358803561 | H17: 0.04076410684 | I17: 0.08152821367 | J17: 0.1358803561 | K17: 0.1902324986 | L17: 0.244584641 | M17: 0.2989367835 | N17: 0.3532889259 | O17: 0.3940530327 | P17: 0.421229104 | Q17: 0.4348171396 | R17: UBC_takeup

Sheet Ancillary services
A1: Ancillary services
C3: Units | E3: 2017/18 | F3: 2018/19 | G3: 2019/20 | H3: 2020/21 | I3: 2021/22 | J3: 2022/23 | K3: 2023/24 | L3: 2024/25 | M3: 2025/26 | N3: 2026/27 | O3: 2027/28 | P3: 2028/29
A5: Total GEA rentals | C5: One | E5: =Total_UBC_subs*million -> 0 | F5: 25676.22385 | G5: 77028.67156 | H5: 154057.3431 | I5: 256762.2385 | J5: 359467.1339 | K5: 462172.0294 | L5: 564876.9248 | M5: 667581.8202 | N5: 744610.4917 | O5: 795962.9394 | P5: 821639.1633
A6: FTTC rentals | C6: One | E6: =E5*FTTC_ratio -> 0 | F6: 17500.77841 | G6: 52502.33522 | H6: 105004.6704 | I6: 175007.7841 | J6: 245010.8977 | K6: 315014.0113 | L6: 385017.1249 | M6: 455020.2386 | N6: 507522.5738 | O6: 542524.1306 | P6: 560024.909
A7: FTTP rentals | C7: One | E7: =E5*FTTP_ratio -> 0 | F7: 2109.651233 | G7: 6328.953699 | H7: 12657.9074 | I7: 21096.51233 | J7: 29535.11726 | K7: 37973.72219 | L7: 46412.32713 | M7: 54850.93206 | N7: 61179.88576 | O7: 65399.18822 | P7: 67508.83946
A8: Gfast rentals | C8: One | E8: =E5*Gfast_ratio -> 0 | F8: 6065.794213 | G8: 18197.38264 | H8: 36394.76528 | I8: 60657.94213 | J8: 84921.11899 | K8: 109184.2958 | L8: 133447.4727 | M8: 157710.6495 | N8: 175908.0322 | O8: 188039.6206 | P8: 194105.4148
A10: Change in GEA rentals
A11: FTTC rentals | C11: One | E11: =E6-D6 -> 0 | F11: =F6-E6 -> 17500.77841 | G11: 35001.55681 | H11: 52502.33522 | I11: 70003.11363 | J11: 70003.11363 | K11: 70003.11363 | L11: 70003.11363 | M11: 70003.11363 | N11: 52502.33522 | O11: 35001.55681 | P11: 17500.77841
A12: FTTP rentals | C12: One | E12: =E7-D7 -> 0 | F12: =F7-E7 -> 2109.651233 | G12: 4219.302466 | H12: 6328.953699 | I12: 8438.604932 | J12: 8438.604932 | K12: 8438.604932 | L12: 8438.604932 | M12: 8438.604932 | N12: 6328.953699 | O12: 4219.302466 | P12: 2109.651233
A13: Gfast rentals | C13: One | E13: =E8-D8 -> 0 | F13: 6065.794213 | G13: 12131.58843 | H13: 18197.38264 | I13: 24263.17685 | J13: 24263.17685 | K13: 24263.17685 | L13: 24263.17685 | M13: 24263.17685 | N13: 18197.38264 | O13: 12131.58843 | P13: 6065.794213
A15: GEA Connections
A16: FTTC connections | C16: One | E16: =E11+E49 -> 0 | F16: 18900.84068 | G16: 39201.74363 | H16: 60902.70886 | I16: 84003.73635 | J16: 89603.98544 | K16: 95204.23453 | L16: 100804.4836 | M16: 106404.7327 | N16: 93104.14112 | O16: 78403.48726 | P16: 62302.77113
A17: FTTP connections | C17: One | E17: =E12+E50 -> 0 | F17: 2278.423332 | G17: 4725.618762 | H17: 7341.586291 | I17: 10126.32592 | J17: 10801.41431 | K17: 11476.50271 | L17: 12151.5911 | M17: 12826.6795 | N17: 11223.34456 | O17: 9451.237524 | P17: 7510.35839
A18: Gfast connections | C18: One | E18: =E13+E51 -> 0 | F18: 6551.057751 | G18: 13587.37904 | H18: 21108.96386 | I18: 29115.81222 | J18: 31056.86637 | K18: 32997.92052 | L18: 34938.97467 | M18: 36880.02882 | N18: 32270.02522 | O18: 27174.75808 | P18: 21594.2274
A21: FTTC Engineer install (%) | C21: % | E21: ='WLA inputs'!J67 -> 0.05630933489 | F21: ='WLA inputs'!K67 -> 0.03420392567 | G21: ='WLA inputs'!L67 -> 0.02336667071 | H21: ='WLA inputs'!M67 -> 0.01801974418 | I21: ='WLA inputs'!N67 -> 0.01528405854 | J21: ='WLA inputs'!O67 -> 0.01286357955 | K21: ='WLA inputs'!P67 -> 0.01143746098 | L21: ='WLA inputs'!Q67 -> 0.0104971233 | M21: ='WLA inputs'!R67 -> 0.009744637729 | N21: ='WLA inputs'!S67 -> 0.009228089155 | O21: ='WLA inputs'!T67 -> 0.008833423196 | P21: ='WLA inputs'!U67 -> 0.008931244884
A22: FTTP Engineer install (%) | C22: % | E22: 0.98 | F22: 0.98 | G22: 0.98 | H22: 0.98 | I22: 0.98 | J22: 0.98 | K22: 0.98 | L22: 0.98 | M22: 0.98 | N22: 0.98 | O22: 0.98 | P22: 0.98
A23: Gfast Engineer install (%) | C23: % | E23: ='WLA inputs'!J67 -> 0.05630933489 | F23: ='WLA inputs'!K67 -> 0.03420392567 | G23: ='WLA inputs'!L67 -> 0.02336667071 | H23: ='WLA inputs'!M67 -> 0.01801974418 | I23: ='WLA inputs'!N67 -> 0.01528405854 | J23: ='WLA inputs'!O67 -> 0.01286357955 | K23: ='WLA inputs'!P67 -> 0.01143746098 | L23: ='WLA inputs'!Q67 -> 0.0104971233 | M23: ='WLA inputs'!R67 -> 0.009744637729 | N23: ='WLA inputs'!S67 -> 0.009228089155 | O23: ='WLA inputs'!T67 -> 0.008833423196 | P23: ='WLA inputs'!U67 -> 0.008931244884
A25: FTTC Engineer install | C25: One | E25: =E21*E16 -> 0 | F25: =F21*F16 -> 646.4829497 | G25: 916.0142345 | H25: 1097.451234 | I25: 1283.918024 | J25: 1152.627995 | K25: 1088.894718 | L25: 1058.157094 | M25: 1036.875573 | N25: 859.173315 | O25: 692.571183 | P25: 556.4413059
A26: FTTP Engineer install | C26: One | E26: =E22*E17 -> 0 | F26: =F22*F17 -> 2232.854865 | G26: 4631.106387 | H26: 7194.754565 | I26: 9923.7994 | J26: 10585.38603 | K26: 11246.97265 | L26: 11908.55928 | M26: 12570.14591 | N26: 10998.87767 | O26: 9262.212774 | P26: 7360.151222
A27: Gfast Engineer install | C27: One | E27: =E23*E18 -> 0 | F27: =F23*F18 -> 224.0718924 | G27: 317.4918117 | H27: 380.3781287 | I27: 445.0077785 | J27: 399.5024712 | K27: 377.4124285 | L27: 366.7587251 | M27: 359.3825202 | N27: 297.7906697 | O27: 240.0461383 | P27: 192.863333
Q28: Engineer_install_vols
A30: FTTC PCP only (%) | C30: % | E30: ='WLA inputs'!J66 -> 0.9209015226 | F30: ='WLA inputs'!K66 -> 0.9428890656 | G30: ='WLA inputs'!L66 -> 0.9536203428 | H30: ='WLA inputs'!M66 -> 0.9589536886 | I30: ='WLA inputs'!N66 -> 0.9617195016 | J30: ='WLA inputs'!O66 -> 0.9641303918 | K30: ='WLA inputs'!P66 -> 0.9655726696 | L30: ='WLA inputs'!Q66 -> 0.966536335 | M30: ='WLA inputs'!R66 -> 0.9673060108 | N30: ='WLA inputs'!S66 -> 0.9678444356 | O30: ='WLA inputs'!T66 -> 0.9682595502 | P30: ='WLA inputs'!U66 -> 0.9682222022
A31: FTTP PCP only (%) | C31: % | E31: 0 | F31: 0 | G31: 0 | H31: 0 | I31: 0 | J31: 0 | K31: 0 | L31: 0 | M31: 0 | N31: 0 | O31: 0 | P31: 0
A32: Gfast PCP only (%) | C32: % | E32: ='WLA inputs'!J66 -> 0.9209015226 | F32: ='WLA inputs'!K66 -> 0.9428890656 | G32: ='WLA inputs'!L66 -> 0.9536203428 | H32: ='WLA inputs'!M66 -> 0.9589536886 | I32: ='WLA inputs'!N66 -> 0.9617195016 | J32: ='WLA inputs'!O66 -> 0.9641303918 | K32: ='WLA inputs'!P66 -> 0.9655726696 | L32: ='WLA inputs'!Q66 -> 0.966536335 | M32: ='WLA inputs'!R66 -> 0.9673060108 | N32: ='WLA inputs'!S66 -> 0.9678444356 | O32: ='WLA inputs'!T66 -> 0.9682595502 | P32: ='WLA inputs'!U66 -> 0.9682222022
A34: FTTC PCP only | C34: One | E34: =E16*E30 -> 0 | F34: =F16*F30 -> 17821.39601 | G34: 37383.5802 | H34: 58402.87731 | I34: 80788.03146 | J34: 86389.92559 | K34: 91926.60689 | L34: 97431.19615 | M34: 102925.9375 | N34: 90110.32491 | O34: 75914.92531 | P34: 60322.92627
A35: FTTP PCP only | C35: One | E35: =E17*E31 -> 0 | F35: =F17*F31 -> 0 | G35: 0 | H35: 0 | I35: 0 | J35: 0 | K35: 0 | L35: 0 | M35: 0 | N35: 0 | O35: 0 | P35: 0
A36: Gfast PCP only | C36: One | E36: =E18*E32 -> 0 | F36: =F18*F32 -> 6176.920721 | G36: 12957.20106 | H36: 20242.51876 | I36: 28001.24442 | J36: 29942.86875 | K36: 31861.89021 | L36: 33769.78853 | M36: 35674.27356 | N36: 31232.36434 | O36: 26312.21903 | P36: 20908.01041
Q37: PCP_only_vols
A39: FTTC Start of Stopped line (%) | C39: % | E39: =1-E21-E30 -> 0.02278914246 | F39: 0.02290700868 | G39: 0.02301298648 | H39: 0.02302656717 | I39: 0.02299643982 | J39: 0.02300602862 | K39: 0.02298986946 | L39: 0.02296654171 | M39: 0.02294935142 | N39: 0.02292747529 | O39: 0.02290702662 | P39: 0.02284655289
A40: FTTP Start of Stopped line (%) | C40: % | E40: =1-E22-E31 -> 0.02 | F40: 0.02 | G40: 0.02 | H40: 0.02 | I40: 0.02 | J40: 0.02 | K40: 0.02 | L40: 0.02 | M40: 0.02 | N40: 0.02 | O40: 0.02 | P40: 0.02
A41: Gfast Start of Stopped line (%) | C41: % | E41: =1-E23-E32 -> 0.02278914246 | F41: 0.02290700868 | G41: 0.02301298648 | H41: 0.02302656717 | I41: 0.02299643982 | J41: 0.02300602862 | K41: 0.02298986946 | L41: 0.02296654171 | M41: 0.02294935142 | N41: 0.02292747529 | O41: 0.02290702662 | P41: 0.02284655289
A43: FTTC Start of Stopped line | C43: One | E43: =E16*E39 -> 0 | F43: 432.9617215 | G43: 902.149196 | H43: 1402.380316 | I43: 1931.786867 | J43: 2061.431854 | K43: 2188.732924 | L43: 2315.130378 | M43: 2441.919604 | N43: 2134.642895 | O43: 1795.99077 | P43: 1423.403556
A44: FTTP Start of Stopped line | C44: One | E44: =E17*E40 -> 0 | F44: 45.56846663 | G44: 94.51237524 | H44: 146.8317258 | I44: 202.5265184 | J44: 216.0282863 | K44: 229.5300542 | L44: 243.031822 | M44: 256.5335899 | N44: 224.4668912 | O44: 189.0247505 | P44: 150.2071678
A45: Gfast Start of Stopped line | C45: One | E45: =E18*E41 -> 0 | F45: 150.0651368 | G45: 312.6861701 | H45: 486.0669743 | I45: 669.5600235 | J45: 714.4951567 | K45: 758.6178852 | L45: 802.4274192 | M45: 846.3727418 | N45: 739.8702056 | O45: 622.4929065 | P45: 493.3536584
Q46: Start_stopped_lines_vols
A47: GEA Ceases
A49: FTTC Ceases | C49: One | E49: =E6:P6*Cease_ratio -> 0 | F49: 1400.062273 | G49: 4200.186818 | H49: 8400.373635 | I49: 14000.62273 | J49: 19600.87182 | K49: 25201.12091 | L49: 30801.37 | M49: 36401.61909 | N49: 40601.8059 | O49: 43401.93045 | P49: 44801.99272
A50: FTTP Ceases | C50: One | E50: =E7:P7*Cease_ratio -> 0 | F50: 168.7720986 | G50: 506.3162959 | H50: 1012.632592 | I50: 1687.720986 | J50: 2362.809381 | K50: 3037.897776 | L50: 3712.98617 | M50: 4388.074565 | N50: 4894.390861 | O50: 5231.935058 | P50: 5400.707157
A51: Gfast Ceases | C51: One | E51: =E8:P8*Cease_ratio -> 0 | F51: 485.2635371 | G51: 1455.790611 | H51: 2911.581222 | I51: 4852.635371 | J51: 6793.689519 | K51: 8734.743667 | L51: 10675.79782 | M51: 12616.85196 | N51: 14072.64258 | O51: 15043.16965 | P51: 15528.43319
Q52: Ceases_vols
A53: Bandwidth Change
A55: FTTC Bandwidth Change | C55: One | E55: =E6:P6*Bandwidth_change_ratio -> 0 | F55: 2625.116761 | G55: 7875.350283 | H55: 15750.70057 | I55: 26251.16761 | J55: 36751.63465 | K55: 47252.1017 | L55: 57752.56874 | M55: 68253.03579 | N55: 76128.38607 | O55: 81378.61959 | P55: 84003.73635
A56: FTTP Bandwidth Change | C56: One | E56: =E7:P7*Bandwidth_change_ratio -> 0 | F56: 316.447685 | G56: 949.3430549 | H56: 1898.68611 | I56: 3164.47685 | J56: 4430.267589 | K56: 5696.058329 | L56: 6961.849069 | M56: 8227.639809 | N56: 9176.982864 | O56: 9809.878234 | P56: 10126.32592
A57: Gfast Bandwidth Change | C57: One | E57: =E8:P8*Bandwidth_change_ratio -> 0 | F57: 909.869132 | G57: 2729.607396 | H57: 5459.214792 | I57: 9098.69132 | J57: 12738.16785 | K57: 16377.64438 | L57: 20017.1209 | M57: 23656.59743 | N57: 26386.20483 | O57: 28205.94309 | P57: 29115.81222
Q58: Bandwidth_change_vols
A59: Migrations
A60: FTTC Migrations | C60: One | E60: =E6:P6*Migration_ratio -> 0 | F60: 1225.054488 | G60: 3675.163465 | H60: 7350.326931 | I60: 12250.54488 | J60: 17150.76284 | K60: 22050.98079 | L60: 26951.19875 | M60: 31851.4167 | N60: 35526.58017 | O60: 37976.68914 | P60: 39201.74363
A61: FTTP Migrations | C61: One | E61: =E7:P7*Migration_ratio -> 0 | F61: 147.6755863 | G61: 443.0267589 | H61: 886.0535179 | I61: 1476.755863 | J61: 2067.458208 | K61: 2658.160554 | L61: 3248.862899 | M61: 3839.565244 | N61: 4282.592003 | O61: 4577.943176 | P61: 4725.618762
A62: Gfast Migrations | C62: One | E62: =E8:P8*Migration_ratio -> 0 | F62: 424.6055949 | G62: 1273.816785 | H62: 2547.63357 | I62: 4246.055949 | J62: 5944.478329 | K62: 7642.900709 | L62: 9341.323089 | M62: 11039.74547 | N62: 12313.56225 | O62: 13162.77344 | P62: 13587.37904
Q63: Migrations_vols
A64: Totals
A65: Engineer install | C65: One | E65: =E25+E27 -> 0 | F65: 870.5548421 | G65: 1233.506046 | H65: 1477.829362 | I65: 1728.925802 | J65: 1552.130466 | K65: 1466.307146 | L65: 1424.915819 | M65: 1396.258093 | N65: 1156.963985 | O65: 932.6173214 | P65: 749.3046389
A66: FTTP Engineer install | C66: One | E66: =E17 -> 0 | F66: 2278.423332 | G66: 4725.618762 | H66: 7341.586291 | I66: 10126.32592 | J66: 10801.41431 | K66: 11476.50271 | L66: 12151.5911 | M66: 12826.6795 | N66: 11223.34456 | O66: 9451.237524 | P66: 7510.35839
A67: PCP only | C67: One | E67: =SUM(E34:E36) -> 0 | F67: 23998.31673 | G67: 50340.78126 | H67: 78645.39607 | I67: 108789.2759 | J67: 116332.7943 | K67: 123788.4971 | L67: 131200.9847 | M67: 138600.2111 | N67: 121342.6893 | O67: 102227.1443 | P67: 81230.93667
A68: Start of Stopped line | C68: One | E68: =SUM(E43:E45) -> 0 | F68: =SUM(F43:F45) -> 628.5953249 | G68: 1309.347741 | H68: 2035.279017 | I68: 2803.873409 | J68: 2991.955297 | K68: 3176.880863 | L68: 3360.589619 | M68: 3544.825936 | N68: 3098.979992 | O68: 2607.508427 | P68: 2066.964382
A69: GEA Ceases | C69: One | E69: =SUM(E49:E51) -> 0 | F69: =SUM(F49:F51) -> 2054.097908 | G69: 6162.293725 | H69: 12324.58745 | I69: 20540.97908 | J69: 28757.37072 | K69: 36973.76235 | L69: 45190.15398 | M69: 53406.54561 | N69: 59568.83934 | O69: 63677.03516 | P69: 65731.13306
A70: Bandwidth Change | C70: One | E70: =SUM(E55:E57) -> 0 | F70: =SUM(F55:F57) -> 3851.433578 | G70: 11554.30073 | H70: 23108.60147 | I70: 38514.33578 | J70: 53920.07009 | K70: 69325.8044 | L70: 84731.53872 | M70: 100137.273 | N70: 111691.5738 | O70: 119394.4409 | P70: 123245.8745
A71: Migrations | C71: One | E71: =SUM(E60:E62) -> 0 | F71: =SUM(F60:F62) -> 1797.33567 | G71: 5392.007009 | H71: 10784.01402 | I71: 17973.3567 | J71: 25162.69938 | K71: 32352.04206 | L71: 39541.38473 | M71: 46730.72741 | N71: 52122.73442 | O71: 55717.40576 | P71: 57514.74143
Q72: Ancillary_vols

Sheet Indirect benefits
A2: Indirect benefits | E2: Units | G2: 2017/18 | H2: 2018/19 | I2: 2019/20 | J2: 2020/21 | K2: 2021/22 | L2: 2022/23 | M2: 2023/24 | N2: 2024/25 | O2: 2025/26 | P2: 2026/27 | Q2: 2027/28 | R2: 2028/29
B5: GEA rentals
C7: Non-SFBB areas
D9: UBC volumes
D10: 40/2 mgbit/s | E10: One | G10: ='Non-SFBB areas'!G31:R34*million -> 0 | H10: 1139.593276 | I10: 2199.912721 | J10: 2301.453872 | K10: 1560.337255 | L10: -371.5466545 | M10: -3065.043563 | N10: -6067.271546 | O10: -9338.749117 | P10: -12293.67325 | Q10: -14680.0638 | R10: -16399.05704
D11: 40/10 mgbit/s | E11: One | G11: 0 | H11: 9333.525688 | I11: 31465.19989 | J11: 69006.54959 | K11: 123981.9622 | L11: 183042.1406 | M11: 245736.1826 | N11: 310932.9571 | O11: 377640.3162 | P11: 430735.4715 | Q11: 468892.4476 | R11: 491246.0492
D12: 55/10 mgbit/s | E12: One | G12: 0 | H12: 8053.064786 | I12: 22462.1287 | J12: 41838.08491 | K12: 64672.06939 | L12: 85463.39273 | M12: 104185.9412 | N12: 121403.8806 | O12: 137835.4971 | P12: 148413.2739 | Q12: 153895.1192 | R12: 154800.1006
D13: 80/20 mgbit/s | E13: One | G13: 0 | H13: 7150.040103 | I13: 20901.43025 | J13: 40911.25475 | K13: 66547.86968 | L13: 91333.14729 | M13: 115314.9491 | N13: 138607.3587 | O13: 161444.756 | P13: 177755.4196 | Q13: 187855.4365 | R13: 191992.0705
D15: Expected unit prices
D16: 40/2 mgbit/s | E16: One | G16: =GEA_rental_prices -> 82.8 | H16: 60.61414014 | I16: 51.61773963 | J16: 47.43386784 | K16: 47.43386784 | L16: 47.43386784 | M16: 47.43386784 | N16: 47.43386784 | O16: 47.43386784 | P16: 47.43386784 | Q16: 47.43386784 | R16: 47.43386784
D17: 40/10 mgbit/s | E17: One | G17: 88.8 | H17: 65.00646913 | I17: 55.35815555 | J17: 50.87110464 | K17: 50.87110464 | L17: 50.87110464 | M17: 50.87110464 | N17: 50.87110464 | O17: 50.87110464 | P17: 50.87110464 | Q17: 50.87110464 | R17: 50.87110464
D18: 55/10 mgbit/s | E18: One | G18: 100.8 | H18: 73.79112712 | I18: 62.83898738 | J18: 57.74557824 | K18: 57.74557824 | L18: 57.74557824 | M18: 57.74557824 | N18: 57.74557824 | O18: 57.74557824 | P18: 57.74557824 | Q18: 57.74557824 | R18: 57.74557824
D19: 80/20 mgbit/s | E19: One | G19: 119.4 | H19: 87.40734701 | I19: 74.43427672 | J19: 68.40101232 | K19: 68.40101232 | L19: 68.40101232 | M19: 68.40101232 | N19: 68.40101232 | O19: 68.40101232 | P19: 68.40101232 | Q19: 68.40101232 | R19: 68.40101232
D21: Incremental revenue
D22: 40/2 mgbit/s | E22: One | G22: =G10:R13*G16:R19 -> 0 | H22: 69075.46652 | I22: 113554.5221 | J22: 109166.8588 | K22: 74012.83111 | L22: -17623.8949 | M22: -145386.8713 | N22: -287794.1567 | O22: -442972.9914 | P22: -583136.472 | Q22: -696332.2061 | R22: -777870.7041
D23: 40/10 mgbit/s | E23: One | G23: 0 | H23: 606739.5496 | I23: 1741855.43 | J23: 3510439.405 | K23: 6307099.373 | L23: 9311555.887 | M23: 12500871.06 | N23: 15817503 | O23: 19210980.04 | P23: 21911989.24 | Q23: 23853076.77 | R23: 24990229.17
D24: 55/10 mgbit/s | E24: One | G24: 0 | H24: 594244.7274 | I24: 1411497.422 | J24: 2415964.406 | K24: 3734526.043 | L24: 4935133.031 | M24: 6016277.421 | N24: 7010537.283 | O24: 7959390.479 | P24: 8570210.319 | Q24: 8886762.643 | R24: 8939021.32
D25: 80/20 mgbit/s | E25: One | G25: 0 | H25: 624966.0364 | I25: 1555782.843 | J25: 2798371.24 | K25: 4551941.654 | L25: 6247279.733 | M25: 7887659.252 | N25: 9480883.648 | O25: 11042984.74 | P25: 12158650.65 | Q25: 12849502.02 | R25: 13132451.98
C27: SFBB areas
D29: UBC volumes
D30: 40/2 mgbit/s | E30: One | G30: ='SFBB areas '!G36:R39*million -> 0 | H30: 0 | I30: 0 | J30: 0 | K30: 0 | L30: 0 | M30: 0 | N30: 0 | O30: 0 | P30: 0 | Q30: 0 | R30: 0
D31: 40/10 mgbit/s | E31: One | G31: 0 | H31: 0 | I31: 0 | J31: 0 | K31: 0 | L31: 0 | M31: 0 | N31: 0 | O31: 0 | P31: 0 | Q31: 0 | R31: 0
D32: 55/10 mgbit/s | E32: One | G32: 0 | H32: 0 | I32: 0 | J32: 0 | K32: 0 | L32: 0 | M32: 0 | N32: 0 | O32: 0 | P32: 0 | Q32: 0 | R32: 0
D33: 80/20 mgbit/s | E33: One | G33: 0 | H33: 0 | I33: 0 | J33: 0 | K33: 0 | L33: 0 | M33: 0 | N33: 0 | O33: 0 | P33: 0 | Q33: 0 | R33: 0
D35: Expected unit prices
D36: 40/2 mgbit/s | E36: One | G36: =GEA_rental_prices -> 82.8 | H36: 60.61414014 | I36: 51.61773963 | J36: 47.43386784 | K36: 47.43386784 | L36: 47.43386784 | M36: 47.43386784 | N36: 47.43386784 | O36: 47.43386784 | P36: 47.43386784 | Q36: 47.43386784 | R36: 47.43386784
D37: 40/10 mgbit/s | E37: One | G37: 88.8 | H37: 65.00646913 | I37: 55.35815555 | J37: 50.87110464 | K37: 50.87110464 | L37: 50.87110464 | M37: 50.87110464 | N37: 50.87110464 | O37: 50.87110464 | P37: 50.87110464 | Q37: 50.87110464 | R37: 50.87110464
D38: 55/10 mgbit/s | E38: One | G38: 100.8 | H38: 73.79112712 | I38: 62.83898738 | J38: 57.74557824 | K38: 57.74557824 | L38: 57.74557824 | M38: 57.74557824 | N38: 57.74557824 | O38: 57.74557824 | P38: 57.74557824 | Q38: 57.74557824 | R38: 57.74557824
D39: 80/20 mgbit/s | E39: One | G39: 119.4 | H39: 87.40734701 | I39: 74.43427672 | J39: 68.40101232 | K39: 68.40101232 | L39: 68.40101232 | M39: 68.40101232 | N39: 68.40101232 | O39: 68.40101232 | P39: 68.40101232 | Q39: 68.40101232 | R39: 68.40101232
D41: Incremental revenue
D42: 40/2 mgbit/s | E42: One | G42: =G30:R33*G36:R39 -> 0 | H42: 0 | I42: 0 | J42: 0 | K42: 0 | L42: 0 | M42: 0 | N42: 0 | O42: 0 | P42: 0 | Q42: 0 | R42: 0
D43: 40/10 mgbit/s | E43: One | G43: 0 | H43: 0 | I43: 0 | J43: 0 | K43: 0 | L43: 0 | M43: 0 | N43: 0 | O43: 0 | P43: 0 | Q43: 0 | R43: 0
D44: 55/10 mgbit/s | E44: One | G44: 0 | H44: 0 | I44: 0 | J44: 0 | K44: 0 | L44: 0 | M44: 0 | N44: 0 | O44: 0 | P44: 0 | Q44: 0 | R44: 0
D45: 80/20 mgbit/s | E45: One | G45: 0 | H45: 0 | I45: 0 | J45: 0 | K45: 0 | L45: 0 | M45: 0 | N45: 0 | O45: 0 | P45: 0 | Q45: 0 | R45: 0
B48: GEA ancillary services
D50: UBC volumes
D51: Engineer install | E51: One | G51: =Ancillary_vols -> 0 | H51: 870.5548421 | I51: 1233.506046 | J51: 1477.829362 | K51: 1728.925802 | L51: 1552.130466 | M51: 1466.307146 | N51: 1424.915819 | O51: 1396.258093 | P51: 1156.963985 | Q51: 932.6173214 | R51: 749.3046389
D52: FTTP Engineer install | E52: One | G52: 0 | H52: 2278.423332 | I52: 4725.618762 | J52: 7341.586291 | K52: 10126.32592 | L52: 10801.41431 | M52: 11476.50271 | N52: 12151.5911 | O52: 12826.6795 | P52: 11223.34456 | Q52: 9451.237524 | R52: 7510.35839
D53: PCP only | E53: One | G53: 0 | H53: 23998.31673 | I53: 50340.78126 | J53: 78645.39607 | K53: 108789.2759 | L53: 116332.7943 | M53: 123788.4971 | N53: 131200.9847 | O53: 138600.2111 | P53: 121342.6893 | Q53: 102227.1443 | R53: 81230.93667
D54: Start of Stopped line | E54: One | G54: 0 | H54: 628.5953249 | I54: 1309.347741 | J54: 2035.279017 | K54: 2803.873409 | L54: 2991.955297 | M54: 3176.880863 | N54: 3360.589619 | O54: 3544.825936 | P54: 3098.979992 | Q54: 2607.508427 | R54: 2066.964382
D55: GEA Ceases | E55: One | G55: 0 | H55: 2054.097908 | I55: 6162.293725 | J55: 12324.58745 | K55: 20540.97908 | L55: 28757.37072 | M55: 36973.76235 | N55: 45190.15398 | O55: 53406.54561 | P55: 59568.83934 | Q55: 63677.03516 | R55: 65731.13306
D56: Bandwidth Change | E56: One | G56: 0 | H56: 3851.433578 | I56: 11554.30073 | J56: 23108.60147 | K56: 38514.33578 | L56: 53920.07009 | M56: 69325.8044 | N56: 84731.53872 | O56: 100137.273 | P56: 111691.5738 | Q56: 119394.4409 | R56: 123245.8745
D57: Migrations | E57: One | G57: 0 | H57: 1797.33567 | I57: 5392.007009 | J57: 10784.01402 | K57: 17973.3567 | L57: 25162.69938 | M57: 32352.04206 | N57: 39541.38473 | O57: 46730.72741 | P57: 52122.73442 | Q57: 55717.40576 | R57: 57514.74143
D59: Expected unit prices
D60: Engineer install | E60: One | G60: =GEA_ancillary_prices -> 99 | H60: 90 | I60: 81.23902182 | J60: 83.75747808 | K60: 86.353696 | L60: 89.03077303 | M60: 91.79093029 | N60: 94.63654288 | O60: 97.56988619 | P60: 100.5947303 | Q60: 103.7135955 | R60: 106.9284863
D61: FTTP Engineer install | E61: One | G61: 117 | H61: 117 | I61: 117 | J61: 117 | K61: 117 | L61: 117 | M61: 117 | N61: 117 | O61: 117 | P61: 117 | Q61: 117 | R61: 117
D62: PCP only | E62: One | G62: 49 | H62: 47.48273612 | I62: 46.55079819 | J62: 47.47944735 | K62: 49.75973263 | L62: 50.0582646 | M62: 52.53216448 | N62: 54.33047198 | O62: 55.38693979 | P62: 56.61689987 | Q62: 58.50288917 | R62: 60.31546816
D63: Start of Stopped line | E63: One | G63: 32.52 | H63: 7.082306063 | I63: 3.276625428 | J63: 3.378200454 | K63: 3.482972164 | L63: 3.59094433 | M63: 3.702263851 | N63: 3.817034009 | O63: 3.935361847 | P63: 4.057358119 | Q63: 4.183136356 | R63: 4.312813372
D64: GEA Ceases | E64: One | G64: 0 | H64: 0 | I64: 0 | J64: 0 | K64: 0 | L64: 0 | M64: 0 | N64: 0 | O64: 0 | P64: 0 | Q64: 0 | R64: 0
D65: Bandwidth Change | E65: One | G65: 11.25 | H65: 9.112987471 | I65: 8.165247899 | J65: 8.207087135 | K65: 8.207087135 | L65: 8.207087135 | M65: 8.207087135 | N65: 8.207087135 | O65: 8.207087135 | P65: 8.207087135 | Q65: 8.207087135 | R65: 8.207087135
D66: Migrations | E66: One | G66: 11 | H66: 4.926032167 | I66: 3.276656308 | J66: 3.378232292 | K66: 3.482972164 | L66: 3.59094433 | M66: 3.702263851 | N66: 3.817034009 | O66: 3.935361847 | P66: 4.057358119 | Q66: 4.183136356 | R66: 4.312813372
D68: Incremental revenue
D69: Engineer install | E69: One | G69: =G51:R57*G60:R66 -> 0 | H69: 78349.93579 | I69: 100208.8246 | J69: 123779.2604 | K69: 149299.1331 | L69: 138187.3752 | M69: 134593.697 | N69: 134849.107 | O69: 136232.7432 | P69: 116384.48 | Q69: 96725.09561 | R69: 80122.01083
D70: FTTP Engineer install | E70: One | G70: 0 | H70: 266575.5298 | I70: 552897.3952 | J70: 858965.596 | K70: 1184780.132 | L70: 1263765.475 | M70: 1342750.817 | N70: 1421736.159 | O70: 1500721.501 | P70: 1313131.314 | Q70: 1105794.79 | R70: 878711.9316
D71: PCP only | E71: One | G71: 0 | H71: 1139505.741 | I71: 2343403.549 | J71: 3734039.942 | K71: 5413325.281 | L71: 5823417.801 | M71: 6502877.691 | N71: 7128211.421 | O71: 7676641.546 | P71: 6870046.887 | Q71: 5980583.296 | R71: 4899481.975
D72: Start of Stopped line | E72: One | G72: 0 | H72: 4451.904481 | I72: 4290.242103 | J72: 6875.580498 | K72: 9765.813037 | L72: 10743.94491 | M72: 11761.65118 | N72: 12827.48487 | O72: 13950.17274 | P72: 12573.67163 | Q72: 10907.5633 | R72: 8914.431626
D73: GEA Ceases | E73: One | G73: 0 | H73: 0 | I73: 0 | J73: 0 | K73: 0 | L73: 0 | M73: 0 | N73: 0 | O73: 0 | P73: 0 | Q73: 0 | R73: 0
D74: Bandwidth Change | E74: One | G74: 0 | H74: 35098.06594 | I74: 94343.72979 | J74: 189654.3058 | K74: 316090.5097 | L74: 442526.7136 | M74: 568962.9175 | N74: 695399.1213 | O74: 821835.3252 | P74: 916662.4781 | Q74: 979880.5801 | R74: 1011489.631
D75: Migrations | E75: One | G75: 0 | H75: 8853.733324 | I75: 17667.75378 | J75: 36430.90439 | K75: 62600.70107 | L75: 90357.85265 | M75: 119775.7958 | N75: 150930.8103 | O75: 183902.3218 | P75: 211480.5997 | Q75: 233073.5057 | R75: 248050.346
B78: All Services
D80: Incremental revenue
D81: GEA rental | E81: One | G81: =SUM(G22:G25,G42:G45) -> 0 | H81: =SUM(H22:H25,H42:H45) -> 1895025.78 | I81: 4822690.217 | J81: 8833941.909 | K81: 14667579.9 | L81: 20476344.76 | M81: 26259420.86 | N81: 32021129.77 | O81: 37770382.27 | P81: 42057713.73 | Q81: 44893009.23 | R81: 46283831.77
D82: GEA ancillary services | E82: One | G82: =SUM(G69:G75) -> 0 | H82: =SUM(H69:H75) -> 1532834.91 | I82: 3112811.495 | J82: 4949745.589 | K82: 7135861.57 | L82: 7768999.162 | M82: 8680722.569 | N82: 9543954.104 | O82: 10333283.61 | P82: 9440279.43 | Q82: 8406964.831 | R82: 7126770.326
D84: Total | E84: One | G84: =SUM(G81:G82)*(1+Revenue_uplift) -> 0 | H84: 3427860.69 | I84: 7935501.711 | J84: 13783687.5 | K84: 21803441.47 | L84: 28245343.92 | M84: 34940143.43 | N84: 41565083.87 | O84: 48103665.88 | P84: 51497993.16 | Q84: 53299974.06 | R84: 53410602.1 | S84: Incremental_revenue
D86: Incremental rental revenue
D87: Non-SFBB areas | E87: % | F87: =J87 -> 1 | G87: =IF(G81=0,"",SUM(G22:G25)/G81) ->  | H87: =IF(H81=0,"",SUM(H22:H25)/H81) -> 1 | I87: 1 | J87: 1 | K87: 1 | L87: 1 | M87: 1 | N87: 1 | O87: 1 | P87: 1 | Q87: 1 | R87: 1
D88: SFBB areas | E88: % | F88: =J88 -> 0 | G88: =IF(G81=0,"",1-G87) ->  | H88: =IF(H81=0,"",1-H87) -> 0 | I88: 0 | J88: 0 | K88: 0 | L88: 0 | M88: 0 | N88: 0 | O88: 0 | P88: 0 | Q88: 0 | R88: 0
